bitfinex-derivatives/quotes_SOLF0:USTF0_20250821
["timestamp","ask_amount","ask_price","bid_price","bid_amount"]
[1755789939471,2.82,183.69,183.58,5.4474]
[1755789939670,2.82,183.69,183.57,3.08]
[1755789940569,2.82,183.69,183.61,5.4465]
[1755789940773,2.82,183.69,183.57,3.08]
[1755789941569,370.49277084,183.81,183.53,587.87369869]
[1755789941570,4.87277084,183.73,183.6,3.08]
[1755789941766,4.87277084,183.73,183.64,5.4457]
[1755789941966,4.87277084,183.73,183.63,3.08]
[1755789942165,2.82,183.75,183.63,3.08]
[1755789943172,2.82,183.72,183.63,3.08]
[1755789943869,2.82,183.72,183.63,8.5262]
[1755789944662,2.82,183.72,183.63,3.08]
[1755789944969,4.87277084,183.73,183.63,3.08]
[1755789945162,7.69277084,183.76,183.63,3.08]
[1755789945367,7.69277084,183.76,183.65,5.4454]
[1755789945867,7.69277084,183.76,183.64,5.4458]
[1755789946068,7.69277084,183.76,183.63,3.08]
[1755789946373,4.87277084,183.73,183.63,3.08]
[1755789946575,4.87277084,183.7,183.59,3.08]
[1755789947668,2.82,183.72,183.6,3.08]
[1755789947863,2.82,183.72,183.65,5.4454]
[1755789948072,2.82,183.72,183.63,3.08]
[1755789949168,2.82,183.72,183.64,5.4457]
[1755789949372,2.82,183.72,183.63,3.08]
[1755789949764,2.82,183.72,183.63,8.5261]
[1755789950172,2.82,183.72,183.64,5.4457]
[1755789950368,2.82,183.72,183.63,3.08]
[1755789950570,7.69277084,183.76,183.63,3.08]
[1755789950771,2.82,183.76,183.68,5.4447]
[1755789951174,2.82,183.76,183.69,5.4444]
[1755789951371,2.82,183.76,183.67,3.08]
[1755789952971,7.69277084,183.76,183.67,3.08]
[1755789953173,7.69277084,183.76,183.63,2.81]
[1755789953370,7.69277084,183.76,183.65,5.4456]
[1755789953570,7.69277084,183.76,183.63,2.81]
[1755789953571,4.87277084,183.73,183.63,2.81]
[1755789953873,2.95,183.72,183.63,2.81]
[1755789954075,2.95,183.72,183.63,8.2561]
[1755789954278,2.95,183.72,183.63,2.81]
[1755789955180,4.87277084,183.73,183.63,2.81]
[1755789955674,4.87277084,183.73,183.66,5.445]
[1755789957077,4.87277084,183.73,183.67,5.445]
[1755789957276,4.87277084,183.73,183.63,2.81]
[1755789958476,2.95,183.72,183.63,2.81]
[1755789959465,2.95,183.72,183.65,5.4455]
[1755789959776,4.87277084,183.73,183.63,2.81]
[1755789960069,7.82277084,183.76,183.63,2.81]
[1755789960274,2.95,183.76,183.63,2.81]
[1755789961284,2.95,183.76,183.66,2.81]
[1755789961774,7.82277084,183.8,183.69,2.81]
[1755789962169,2.95,183.8,183.69,2.81]
[1755789962386,2.95,183.8,183.71,5.4437]
[1755789962773,2.95,183.8,183.7,5.4441]
[1755789963181,2.95,183.8,183.69,2.81]
[1755789963478,7.82277084,183.85,183.72,2.81]
[1755789963679,2.95,183.85,183.72,2.81]
[1755789963980,2.95,183.85,183.78,5.4417]
[1755789964180,2.95,183.85,183.76,2.81]
[1755789964479,2.95,183.85,183.77,5.4419]
[1755789964880,7.82277084,183.85,183.71,4.87277084]
[1755789965079,2.95,183.84,183.73,5.443]
[1755789965279,2.95,183.84,183.71,7.68277084]
[1755789965280,2.95,183.84,183.71,2.81]
[1755789966078,2.95,183.84,183.74,5.4429]
[1755789966378,2.95,183.84,183.71,2.81]
[1755789966982,2.95,183.84,183.71,4.87277084]
[1755789967181,2.95,183.84,183.72,2.81]
[1755789967778,2.95,183.84,183.76,5.4421]
[1755789967975,2.95,183.84,183.72,2.81]
[1755789968680,2.95,183.84,183.75,5.4424]
[1755789968975,2.95,183.84,183.71,4.87277084]
[1755789969183,2.95,183.84,183.76,2.81]
[1755789971080,2.95,183.84,183.72,2.81]
[1755789971883,2.95,183.81,183.72,2.81]
[1755789972577,2.95,183.81,183.73,5.4431]
[1755789972775,2.95,183.81,183.66,370.73277084]
[1755789972776,4.87277084,183.79,183.68,2.81]
[1755789973082,2.95,183.78,183.68,2.81]
[1755789973982,2.95,183.78,183.72,5.4435]
[1755789974384,2.95,183.78,183.68,2.81]
[1755789974585,2.95,183.78,183.71,5.4437]
[1755789975182,2.95,183.78,183.68,2.81]
[1755789975378,4.87277084,183.79,183.68,2.81]
[1755789975687,7.82277084,183.82,183.76,5.4421]
[1755789976385,7.82277084,183.82,183.75,5.4426]
[1755789976984,7.82277084,183.82,183.76,5.4423]
[1755789977184,7.82277084,183.82,183.73,2.81]
[1755789978390,7.82277084,183.82,183.74,5.4429]
[1755789978588,7.82277084,183.82,183.73,2.81]
[1755789978785,7.82277084,183.82,183.67,140.18]
[1755789978786,2.95,183.81,183.68,2.81]
[1755789978994,4.87277084,183.76,183.68,2.81]
[1755789979487,4.87277084,183.76,183.68,8.2547]
[1755789979793,4.87277084,183.76,183.66,365.86]
[1755789979794,2.95,183.75,183.66,365.86]
[1755789979988,2.95,183.75,183.64,2.81]
[1755789980195,2.95,183.72,183.64,2.81]
[1755789981195,2.95,183.72,183.67,5.4449]
[1755789981496,2.95,183.72,183.64,2.81]
[1755789981697,2.95,183.72,183.6,140.16]
[1755789982994,2.83,183.69,183.6,140.16]
[1755789983399,2.83,183.69,183.61,5.4466]
[1755789983593,2.83,183.69,183.6,140.16]
[1755789983990,2.83,183.69,183.61,5.4468]
[1755789984392,10.84100496,183.81,183.56,365.7]
[1755789984393,4.87277084,183.67,183.56,365.7]
[1755789984694,2.83,183.66,183.56,365.7]
[1755789985191,2.83,183.63,183.55,2.81]
[1755789985697,2.83,183.67,183.55,2.81]
[1755789985895,4.87277084,183.66,183.55,2.81]
[1755789986591,2.83,183.65,183.55,2.81]
[1755789987391,2.83,183.65,183.58,5.4477]
[1755789987596,2.83,183.65,183.55,2.81]
[1755789987792,2.83,183.65,183.57,5.448]
[1755789987997,2.83,183.65,183.55,2.81]
[1755789988894,4.87277084,183.63,183.55,2.81]
[1755789989398,2.83,183.62,183.58,5.4475]
[1755789989701,2.83,183.62,183.55,2.81]
[1755789989896,4.87277084,183.64,183.55,2.81]
[1755789990296,4.87277084,183.64,183.57,5.4479]
[1755789990496,4.87277084,183.64,183.55,2.81]
[1755789991395,4.87277084,183.67,183.55,2.81]
[1755789992294,4.87277084,183.67,183.59,5.4472]
[1755789992492,4.87277084,183.67,183.55,2.81]
[1755789992493,2.83,183.66,183.55,2.81]
[1755789993902,2.83,183.57,183.45,5.93934469]
[1755789994200,2.83,183.57,183.45,2.81]
[1755789994201,4.87277084,183.55,183.45,2.81]
[1755789995101,4.87277084,183.55,183.46,5.4511]
[1755789995297,4.87277084,183.55,183.45,2.81]
[1755789996202,2.83,183.54,183.45,8.2613]
[1755789996799,2.83,183.54,183.45,8.2615]
[1755789996999,2.83,183.54,183.45,2.81]
[1755789998812,2.83,183.54,183.46,5.4511]
[1755789999105,2.83,183.54,183.45,2.81]
[1755790000605,4.87277084,183.55,183.45,2.81]
[1755790000810,4.87277084,183.55,183.49,5.4502]
[1755790001005,4.87277084,183.55,183.45,2.81]
[1755790001708,7.70277084,183.55,183.45,2.81]
[1755790002406,7.70277084,183.55,183.48,5.4505]
[1755790002706,7.70277084,183.55,183.45,2.81]
[1755790003703,4.87277084,183.58,183.45,2.81]
[1755790004197,4.87277084,183.58,183.49,2.81]
[1755790004402,2.83,183.57,183.44,2.81]
[1755790004604,4.87277084,183.55,183.44,2.81]
[1755790004804,2.83,183.54,183.44,2.81]
[1755790005307,4.87277084,183.52,183.44,2.81]
[1755790005607,2.83,183.51,183.44,8.2618]
[1755790005811,2.83,183.51,183.42,140.14]
[1755790006101,2.83,183.51,183.42,5.4524]
[1755790006311,2.83,183.51,183.4,2.81]
[1755790006699,2.83,183.51,183.44,5.4519]
[1755790006897,2.83,183.51,183.4,2.81]
[1755790007306,2.83,183.48,183.4,8.2628]
[1755790007508,2.83,183.48,183.4,2.81]
[1755790008709,2.83,183.48,183.4,8.2628]
[1755790009113,2.83,183.48,183.4,2.81]
[1755790010207,2.83,183.45,183.36,508.87]
[1755790010710,2.83,183.45,183.36,514.3242]
[1755790010909,2.83,183.45,183.36,508.87]
[1755790011513,4.87277084,183.46,183.37,2.81]
[1755790012413,7.70277084,183.49,183.4,2.81]
[1755790012814,7.70277084,183.49,183.41,5.4525]
[1755790013008,7.70277084,183.49,183.4,2.81]
[1755790014012,7.70277084,183.49,183.41,5.4526]
[1755790014211,7.70277084,183.49,183.4,2.81]
[1755790015918,3.08,183.48,183.36,508.89]
[1755790016212,3.08,183.48,183.38,5.4536]
[1755790016417,2.99733183,183.45,183.38,5.4536]
[1755790016616,2.99733183,183.45,183.36,508.89]
[1755790017017,6.07733183,183.45,183.36,508.89]
[1755790018012,2.99733183,183.47,183.37,2.83]
[1755790018711,2.99733183,183.45,183.37,2.83]
[1755790020311,2.99733183,183.45,183.37,5.4538]
[1755790020514,2.99733183,183.45,183.33,2.83]
[1755790020515,2.99733183,183.43,183.33,2.83]
[1755790021407,2.99733183,183.43,183.39,2.83]
[1755790022208,6.07733183,183.43,183.39,2.83]
[1755790022610,2.99733183,183.47,183.38,2.99733183]
[1755790022813,3.08,183.48,183.39,2.83]
[1755790023019,2.99733183,183.47,183.39,2.83]
[1755790023420,2.99733183,183.45,183.35,2.83]
[1755790023619,2.99733183,183.43,183.35,2.83]
[1755790023821,3.08,183.46,183.36,2.83]
[1755790024016,3.08,183.46,183.4,5.4529]
[1755790024321,3.08,183.46,183.34,140.06]
[1755790024322,3.08,183.46,183.38,2.83]
[1755790024618,3.08,183.46,183.4,5.4528]
[1755790024821,3.08,183.46,183.38,2.83]
[1755790025024,3.08,183.46,183.38,5.82733183]
[1755790025322,2.99733183,183.47,183.39,2.83]
[1755790025517,2.99733183,183.49,183.42,5.4522]
[1755790025818,2.99733183,183.49,183.39,2.83]
[1755790026023,2.99733183,183.49,183.4,2.99733183]
[1755790026217,2.99733183,183.49,183.42,5.4522]
[1755790026417,2.99733183,183.49,183.41,2.83]
[1755790026822,6.07733183,183.5,183.41,2.83]
[1755790027018,2.99733183,183.52,183.43,2.83]
[1755790027214,372.37733183,183.54,183.44,2.99733183]
[1755790027422,6.07733183,183.54,183.44,2.99733183]
[1755790027922,6.07733183,183.54,183.43,2.83]
[1755790027923,2.99733183,183.52,183.43,2.83]
[1755790028129,3.08,183.51,183.43,2.83]
[1755790028515,2.99733183,183.5,183.4,5.82733183]
[1755790029116,3.08,183.51,183.43,2.83]
[1755790029521,2.99733183,183.5,183.43,5.452]
[1755790029721,2.99733183,183.5,183.41,2.83]
[1755790029918,3.08,183.51,183.42,2.99733183]
[1755790030318,3.08,183.51,183.44,5.4516]
[1755790030618,3.08,183.51,183.42,2.99733183]
[1755790031023,3.08,183.51,183.43,2.83]
[1755790031927,3.08,183.49,183.4,2.99733183]
[1755790033129,3.08,183.49,183.41,2.83]
[1755790033528,3.08,183.49,183.44,8.2816]
[1755790033825,3.08,183.49,183.44,2.83]
[1755790034029,2.99733183,183.52,183.45,2.83]
[1755790034333,3.08,183.53,183.45,2.83]
[1755790034530,3.08,183.53,183.47,5.451]
[1755790035032,3.08,183.53,183.45,2.83]
[1755790035227,6.07733183,183.53,183.45,2.83]
[1755790035426,2.99733183,183.51,183.45,2.83]
[1755790035831,6.07733183,183.53,183.45,2.83]
[1755790036830,6.07733183,183.49,183.41,2.83]
[1755790037233,6.07733183,183.49,183.44,5.4517]
[1755790037432,6.07733183,183.49,183.44,8.2817]
[1755790037833,6.07733183,183.49,183.45,5.4515]
[1755790038031,6.07733183,183.49,183.44,2.83]
[1755790038032,3.08,183.49,183.44,2.83]
[1755790038537,3.08,183.49,183.45,5.4515]
[1755790038936,2.99733183,183.51,183.46,2.83]
[1755790039230,6.07733183,183.51,183.46,2.83]
[1755790039429,3.08,183.51,183.46,2.83]
[1755790040033,3.08,183.52,183.42,5.82733183]
[1755790041235,2.99733183,183.51,183.42,5.82733183]
[1755790041540,3.08,183.51,183.42,5.82733183]
[1755790043339,3.08,183.51,183.44,5.4517]
[1755790043533,6.07733183,183.51,183.42,5.82733183]
[1755790043733,2.99733183,183.49,183.42,2.83]
[1755790043937,2.79,183.48,183.42,2.83]
[1755790045541,2.99733183,183.5,183.44,5.4517]
[1755790046141,2.99733183,183.5,183.43,5.4522]
[1755790046338,2.79,183.49,183.43,5.4522]
[1755790046544,2.99733183,183.48,183.38,11.96667652]
[1755790047847,2.99733183,183.48,183.39,3.03]
[1755790048047,2.99733183,183.52,183.43,3.03]
[1755790048249,2.99733183,183.54,183.44,2.99733183]
[1755790048548,2.79,183.55,183.45,3.03]
[1755790049343,2.79,183.55,183.49,5.4502]
[1755790050450,2.99733183,183.54,183.45,3.03]
[1755790050855,2.79,183.55,183.45,3.03]
[1755790051046,2.79,183.53,183.49,5.4502]
[1755790051451,2.79,183.53,183.45,3.03]
[1755790052448,3.94585793,183.6,183.47,3.03]
[1755790052449,2.99733183,183.57,183.47,3.03]
[1755790053245,5.78733183,183.59,183.49,3.03]
[1755790053551,2.79,183.58,183.49,3.03]
[1755790054757,2.79,183.58,183.52,5.4494]
[1755790055143,2.99733183,183.56,183.49,3.03]
[1755790055542,2.79,183.55,183.49,5.4503]
[1755790056650,2.79,183.55,183.45,3.03]
[1755790056851,2.79,183.55,183.47,3.03]
[1755790057049,2.79,183.55,183.49,5.4503]
[1755790057249,2.79,183.55,183.47,3.03]
[1755790057752,2.99733183,183.52,183.47,5.451]
[1755790057951,2.79,183.51,183.47,5.451]
[1755790058156,2.99733183,183.5,183.41,5.93934469]
[1755790058352,2.99733183,183.48,183.4,5.93934469]
[1755790058550,2.99733183,183.48,183.41,3.03]
[1755790058751,2.99733183,183.48,183.43,5.4519]
[1755790059060,2.79,183.47,183.43,5.4519]
[1755790059556,2.79,183.46,183.42,5.4524]
[1755790059950,2.99733183,183.46,183.37,8.96934469]
[1755790060149,2.99733183,183.46,183.37,3.03]
[1755790060353,2.99733183,183.46,183.4,5.4528]
[1755790060953,2.99733183,183.46,183.37,3.03]
[1755790061153,5.78733183,183.46,183.37,3.03]
[1755790062658,2.99733183,183.44,183.38,5.4536]
[1755790062856,2.99733183,183.44,183.37,3.03]
[1755790063056,2.99733183,183.42,183.34,5.93934469]
[1755790063359,2.99733183,183.42,183.34,3.03]
[1755790063550,2.99733183,183.38,183.3,5.93934469]
[1755790063754,2.99733183,183.38,183.31,3.03]
[1755790064053,2.99733183,183.38,183.29,3.03]
[1755790065157,2.99733183,183.37,183.29,3.03]
[1755790065558,2.99733183,183.35,183.29,3.03]
[1755790065762,2.99733183,183.35,183.26,0.94934119]
[1755790065763,2.99733183,183.35,183.26,3.03]
[1755790066659,2.99733183,183.33,183.26,3.03]
[1755790066860,2.99733183,183.33,183.27,5.4568]
[1755790067164,2.99733183,183.31,183.21,369.31]
[1755790067860,2.99733183,183.31,183.21,372.30733183]
[1755790068061,2.79,183.3,183.21,372.30733183]
[1755790068256,2.99733183,183.29,183.21,3.03]
[1755790068451,2.99733183,183.29,183.23,5.4579]
[1755790068852,2.99733183,183.27,183.21,3.03]
[1755790069055,5.78733183,183.27,183.21,3.03]
[1755790071267,5.78733183,183.27,183.17,3.03]
[1755790071861,2.99733183,183.27,183.23,5.458]
[1755790072066,2.79,183.26,183.23,5.458]
[1755790072667,2.99733183,183.28,183.2,3.03]
[1755790073457,5.84733183,183.28,183.25,5.4575]
[1755790073756,5.84733183,183.28,183.2,3.03]
[1755790074662,2.99733183,183.26,183.2,3.03]
[1755790075069,5.84733183,183.26,183.21,5.4585]
[1755790075264,5.84733183,183.26,183.18,2.95]
[1755790075265,2.85,183.25,183.18,2.95]
[1755790075666,2.85,183.25,183.2,5.4588]
[1755790075868,2.85,183.25,183.2,2.95]
[1755790076066,5.84733183,183.24,183.17,5.4598]
[1755790076266,5.84733183,183.24,183.16,2.95]
[1755790076567,2.99733183,183.22,183.14,506.0]
[1755790076870,2.99733183,183.2,183.14,506.0]
[1755790077467,2.99733183,183.2,183.16,2.95]
[1755790078171,2.99733183,183.18,183.12,2.95]
[1755790078373,2.99733183,183.17,183.12,2.95]
[1755790078574,5.84733183,183.17,183.13,5.4609]
[1755790078870,5.84733183,183.17,183.11,2.95]
[1755790079266,5.84733183,183.17,183.12,8.4111]
[1755790079468,2.85,183.16,183.09,139.64]
[1755790079875,2.85,183.16,183.11,8.4116]
[1755790080268,2.85,183.16,183.11,8.4115]
[1755790080870,2.99733183,183.17,183.12,2.95]
[1755790081069,5.84733183,183.17,183.12,2.95]
[1755790081670,2.99733183,183.13,183.03,2.95]
[1755790081976,5.84733183,183.13,183.08,5.4626]
[1755790082171,5.84733183,183.13,183.06,2.95]
[1755790083272,2.99733183,183.11,183.06,2.95]
[1755790083475,5.84733183,183.11,183.06,2.95]
[1755790083774,5.84733183,183.11,183.08,5.4623]
[1755790084176,2.99733183,183.11,183.07,2.95]
[1755790084373,2.99733183,183.15,183.06,2.95]
[1755790085579,2.99733183,183.13,183.06,142.61]
[1755790085782,2.99733183,183.15,183.06,142.61]
[1755790085980,5.84733183,183.15,183.06,142.61]
[1755790086680,2.99733183,183.13,183.06,142.61]
[1755790087369,2.99733183,183.13,183.06,2.95]
[1755790087770,2.99733183,183.15,183.06,2.95]
[1755790087975,2.99733183,183.17,183.1,5.462]
[1755790088279,2.99733183,183.17,183.08,2.95]
[1755790088479,2.99733183,183.17,183.1,5.4619]
[1755790088680,2.99733183,183.17,183.08,2.95]
[1755790088982,2.99733183,183.15,183.08,2.95]
[1755790089277,2.99733183,183.13,183.06,139.64]
[1755790089573,5.84733183,183.15,183.07,2.95]
[1755790089773,2.99733183,183.17,183.07,2.95]
[1755790089973,5.84733183,183.19,183.09,2.99733183]
[1755790090175,2.85,183.19,183.1,2.95]
[1755790091172,2.85,183.19,183.14,5.4607]
[1755790091479,2.99733183,183.22,183.15,2.95]
[1755790091679,2.85,183.23,183.15,5.94733183]
[1755790091879,5.84733183,183.26,183.17,5.4598]
[1755790092179,2.85,183.31,183.22,2.95]
[1755790092382,2.85,183.31,183.19,2.99733183]
[1755790092383,2.99733183,183.3,183.19,2.99733183]
[1755790092584,2.85,183.29,183.19,2.99733183]
[1755790092783,2.99733183,183.26,183.18,2.95]
[1755790092979,2.99733183,183.24,183.18,2.95]
[1755790093373,2.99733183,183.26,183.18,2.95]
[1755790093578,2.99733183,183.28,183.18,5.94733183]
[1755790093778,2.85,183.31,183.21,2.95]
[1755790093979,2.99733183,183.3,183.21,2.95]
[1755790094286,2.85,183.31,183.21,2.95]
[1755790095082,137.81587061,183.42,183.23,2.95]
[1755790095083,2.85,183.35,183.23,2.95]
[1755790095981,2.85,183.35,183.25,5.4573]
[1755790096182,2.85,183.35,183.23,2.95]
[1755790096384,7.7419332,183.35,183.23,2.95]
[1755790096679,7.7419332,183.35,183.26,5.4569]
[1755790096885,7.7419332,183.35,183.23,2.95]
[1755790097080,7.7419332,183.35,183.25,5.4574]
[1755790097381,7.7419332,183.35,183.23,2.95]
[1755790097582,7.7419332,183.35,183.25,5.4573]
[1755790097782,7.7419332,183.35,183.23,2.95]
[1755790098184,7.7419332,183.35,183.25,5.4574]
[1755790099078,121.49587061,183.42,183.21,4.8919332]
[1755790099383,2.85,183.36,183.22,2.95]
[1755790099580,2.85,183.36,183.24,2.95]
[1755790099884,2.85,183.36,183.27,5.4566]
[1755790101389,2.85,183.36,183.25,5.4573]
[1755790101587,121.49587061,183.42,183.25,5.4573]
[1755790101588,2.85,183.33,183.25,5.4573]
[1755790102384,2.85,183.33,183.26,5.457]
[1755790102589,2.85,183.33,183.24,2.95]
[1755790102984,2.85,183.33,183.26,5.4572]
[1755790103187,2.85,183.33,183.24,2.95]
[1755790103488,2.85,183.33,183.24,8.4077]
[1755790103689,2.8,183.3,183.2,2.89]
[1755790104078,2.8,183.27,183.2,2.89]
[1755790104485,7.6919332,183.31,183.2,2.89]
[1755790104690,7.6919332,183.31,183.23,5.4579]
[1755790104990,2.8,183.31,183.2,2.89]
[1755790105292,2.8,183.31,183.23,2.89]
[1755790105689,2.8,183.31,183.19,2.89]
[1755790106394,2.8,183.31,183.24,5.4576]
[1755790106686,2.8,183.31,183.22,2.89]
[1755790106886,2.8,183.31,183.24,5.4576]
[1755790107084,2.8,183.31,183.22,2.89]
[1755790107484,4.8919332,183.34,183.22,2.89]
[1755790107988,2.8,183.33,183.22,2.89]
[1755790108387,2.8,183.3,183.22,2.89]
[1755790108992,2.8,183.3,183.24,5.4575]
[1755790109692,2.8,183.3,183.22,8.3483]
[1755790110094,2.8,183.3,183.22,2.89]
[1755790110289,2.8,183.27,183.19,5.4591]
[1755790110593,2.8,183.27,183.18,2.89]
[1755790111785,2.8,183.27,183.18,8.3496]
[1755790112399,2.8,183.24,183.11,2.89]
[1755790112590,2.8,183.24,183.13,139.42]
[1755790112794,2.8,183.24,183.14,2.89]
[1755790113599,4.8919332,183.22,183.14,2.89]
[1755790113792,4.8919332,183.22,183.07,366.7]
[1755790113793,2.8,183.21,183.11,2.89]
[1755790113996,2.8,183.18,183.07,369.59]
[1755790114395,2.8,183.18,183.08,2.89]
[1755790114590,2.8,183.18,183.13,8.3509]
[1755790114994,2.8,183.18,183.13,2.89]
[1755790115294,7.6919332,183.19,183.08,2.89]
[1755790115896,2.8,183.18,183.08,2.89]
[1755790116093,2.8,183.18,183.08,8.3525]
[1755790116291,2.8,183.18,183.08,2.89]
[1755790116489,2.8,183.15,183.05,139.4]
[1755790116896,4.8919332,183.13,183.04,2.89]
[1755790117595,2.8,183.15,183.07,5.4627]
[1755790117800,4.8919332,183.14,183.07,5.4627]
[1755790117996,4.8919332,183.14,183.04,2.89]
[1755790118299,7.6919332,183.14,183.04,2.89]
[1755790118702,4.8919332,183.17,183.04,2.89]
[1755790118899,2.8,183.18,183.06,2.89]
[1755790119202,2.8,183.18,183.07,2.89]
[1755790119498,2.8,183.18,183.07,142.31]
[1755790119698,2.8,183.18,183.13,5.4608]
[1755790119901,2.8,183.18,183.07,2.89]
[1755790120702,2.8,183.23,183.1,2.89]
[1755790121295,2.8,183.2,183.12,5.4614]
[1755790121502,2.8,183.2,183.1,2.89]
[1755790121699,2.8,183.19,183.1,2.89]
[1755790122004,2.8,183.19,183.04,2.89]
[1755790122005,4.8919332,183.17,183.04,2.89]
[1755790122198,2.8,183.16,183.04,2.89]
[1755790122599,2.8,183.13,183.04,2.89]
[1755790123004,4.8919332,183.15,183.04,2.89]
[1755790123301,4.8919332,183.15,183.09,5.4622]
[1755790123499,4.8919332,183.15,183.04,2.89]
[1755790123900,4.8919332,183.15,183.06,5.4631]
[1755790124098,4.8919332,183.15,183.04,2.89]
[1755790124302,2.8,183.11,183.0,2.89]
[1755790124500,2.8,183.11,183.03,5.464]
[1755790124701,2.8,183.11,183.0,2.89]
[1755790124902,2.8,183.08,182.97,366.72]
[1755790125101,4.8919332,183.06,182.97,366.72]
[1755790125306,2.8,183.05,182.93,2.89]
[1755790125499,4.8919332,183.03,182.93,2.89]
[1755790125900,2.8,183.05,182.96,5.4662]
[1755790126102,4.8919332,183.04,182.96,5.4662]
[1755790126308,2.8,183.03,182.93,2.89]
[1755790126898,2.8,183.03,182.95,5.4662]
[1755790127099,2.8,183.03,182.93,2.89]
[1755790128107,4.8919332,183.15,182.93,2.89]
[1755790128108,7.6919332,183.07,182.97,2.89]
[1755790128709,2.8,183.07,182.99,5.4652]
[1755790128903,7.6919332,183.07,182.97,2.89]
[1755790130206,7.6919332,183.07,182.97,8.3557]
[1755790130404,4.8919332,183.04,182.92,2.89]
[1755790130600,2.8,183.03,182.92,2.89]
[1755790130802,2.8,183.07,182.95,2.89]
[1755790131004,7.6919332,183.07,182.95,2.89]
[1755790132204,7.6919332,183.07,182.96,5.4659]
[1755790132603,7.6919332,183.07,182.95,2.89]
[1755790132803,7.6919332,183.07,182.98,5.4654]
[1755790133406,7.6919332,183.07,182.99,5.4651]
[1755790133700,7.6919332,183.07,182.95,2.89]
[1755790133898,2.8,183.07,182.95,2.89]
[1755790134100,2.98,183.11,182.98,3.0]
[1755790134407,2.98,183.11,183.01,3.0]
[1755790134703,2.98,183.11,183.02,5.4642]
[1755790135209,2.98,183.11,183.01,3.0]
[1755790135703,2.98,183.11,183.04,5.4636]
[1755790136706,2.98,183.11,183.03,5.464]
[1755790136908,2.98,183.11,183.01,3.0]
[1755790137210,2.98,183.11,183.04,5.4636]
[1755790137506,2.98,183.15,183.04,3.0]
[1755790137809,2.98,183.15,183.06,10.3548332]
[1755790138003,2.98,183.15,183.06,4.8919332]
[1755790138204,2.98,183.15,183.1,5.4618]
[1755790138411,2.98,183.18,183.07,3.0]
[1755790138811,2.98,183.18,183.07,8.4627]
[1755790139309,2.98,183.18,183.08,5.4624]
[1755790139703,2.98,183.18,183.07,3.0]
[1755790140503,2.98,183.23,183.1,3.0]
[1755790140704,2.98,183.23,183.13,3.0]
[1755790142912,2.98,183.23,183.16,5.46]
[1755790143111,2.98,183.23,183.13,3.0]
[1755790143311,2.98,183.23,183.17,5.4598]
[1755790144412,2.98,183.23,183.18,5.4595]
[1755790144813,7.8719332,183.27,183.18,3.0]
[1755790145410,7.8719332,183.27,183.14,3.0]
[1755790146018,2.98,183.27,183.15,3.0]
[1755790147219,4.8919332,183.26,183.2,5.4587]
[1755790147611,4.8919332,183.26,183.18,3.0]
[1755790147811,4.8919332,183.26,183.19,5.4591]